{"text_format":"1","workbook":"xlsx","n_sheets":8,"sheets":["Sheet1","棚卸表等","DEN","BTIN","TBL","入力","Module1","部課コード表"],"not_rendered":{"charts":0,"images":0,"macros":1,"external_links":0,"defined_names":3,"comments":0,"pivot_tables":0},"unopened":[{"sheet":"Module1","index":6,"reason":"part_missing"}],"bounds":{"document_bytes":16777216,"sheet_cells":100000,"rows_first":2000,"rows_last":500,"rows_between":2000,"halvings":0,"cell_chars":16384,"cell_head_chars":4096},"cells_cut":0,"cells_raw":0,"read":"whole","date_system":"1900"}

{"sheet":"Sheet1","index":0,"n_rows":43,"n_cols":8,"rows_kept":43,"cut":false,"hidden":true,"merged":[[2,7,10,7],[11,7,42,7],[0,0,1,0],[2,4,9,4],[0,1,1,1],[10,4,38,4]]}
["№","列","Ｒ　　Ｍ　　標　　準",null,null,"日　新　バ　ー　ジ　ョ　ン"]
[null,null,"項　目　名　称","項　目　名","分類","項　目　名　称","項　目　名","分類"]
[1,"A","伝票日付","BLDAT","ヘッダ","伝票日付","BLDAT","ヘッダ"]
[2,"B","会社ｺｰﾄﾞ","BUKRS",null,"伝票タイプ","BUKRS"]
[3,"C","転記日付","BUDAT",null,"会社コード","BUDAT"]
[4,"D","伝票ﾀｲﾌﾟ","BLART",null,"転記日付","BLART"]
[5,"E","通貨ｺｰﾄﾞ","WAERS",null,"通貨コード","WAERS"]
[6,"F","ヘッダテキスト","BKTXT",null,"換算レート","KURSF"]
[7,"G","参照伝票番号","XBLNR",null,"参照伝票番号","XBLNR"]
[8,"H","税自動計算","XMWST",null,"ヘッダテキスト","BKTXT"]
[9,"I","転記ｷｰ","NEWBS","明　　　　　　　　　細","税自動計算","XMWST"]
[10,"J","勘定ｺｰﾄﾞ","NEWKO",null,"転記キー","NEWBS","明　　　　　　　　　細"]
[11,"K","特殊GL","NEWUM",null,"勘定コード","NEWKO"]
[12,"L","金額","WRBTR",null,"特殊GL","NEWUM"]
[13,"M","税ｺｰﾄﾞ","MWSKZ",null,"金額","WRBTR"]
[14,"N","ｿｰﾄｷｰ","ZUONR",null,"国内通貨額","DMBTR"]
[15,"O","明細ﾃｷｽﾄ","SGTXT",null,"税コード","MWSKZ"]
[16,"P","起算日","VALUT",null,"ソートキー","ZUONR"]
[17,"Q","期日","ZFBDT",null,"明細テキスト","SGTXT"]
[18,"R","振出日","WDATE",null,"起算日","VALUT"]
[19,"S","支払方法","ZLSCH",null,"期日","ZFBDT"]
[20,"T","支払保留","ZLSPR",null,"振出日","WDATE"]
[21,"U","数量","MENGE",null,"支払方法","ZLSCH"]
[22,"V","数量単位","MEINS",null,"支払保留","ZLSPR"]
[23,"W","事業領域","GSBER",null,"取引先銀行","BVTYP"]
[24,"X","原価ｾﾝﾀ","KOSTL",null,"取引銀行","HBKID"]
[25,"Y","利益ｾﾝﾀ","PRCTR",null,"中央銀行コード","LZBKZ"]
[26,"Z","指図書","AUFNR",null,"数量","MENGE"]
[27,"AA","ＷＢＳ","PS_PSP_PNR",null,"数量単位","MEINS"]
[28,"AB","得意先ｺｰﾄﾞ","RKEAK-FIELD1",null,"事業領域","GSBER"]
[29,"AC","品目ｺｰﾄﾞ","RKEAK-FIELD2",null,"原価センタ","KOSTL"]
[30,"AD","販売組織","RKEAK-FIELD6",null,"利益センタ","PRCTR"]
[31,"AE","流通ﾁｬﾈﾙ","RKEAK-FIELD7",null,"指図書","AUFNR"]
[32,"AF","製品部門","RKEAK-FIELD8",null,"ＷＢＳ","PS_PSP_PNR"]
[33,"AG","品目ｸﾞﾙｰﾌﾟ","RKEAK-FIELD9",null,"得意先コード","RKEAK-FIELD1"]
[34,"AH","営業所","RKEAK-FIELD2",null,"品目コード","RKEAK-FIELD2"]
[35,"AI","営業グループ","RKEAK-FIELD3",null,"販売組織","RKEAK-FIELD6"]
[36,"AJ","需要家","RKEAK-FIELD2",null,"流通チャネル","RKEAK-FIELD7"]
[37,"AK","研究室/設計室","RKEAK-FIELD3",null,"製品部門","RKEAK-FIELD8"]
[38,"AL",null,null,null,"品目グループ","RKEAK-FIELD9"]
[39,"AM",null,null,null,"営業所","RKEAK-FIELD2"]
[40,"AN",null,null,null,"営業グループ","RKEAK-FIELD3"]
[41,"AO",null,null,null,"需要家","RKEAK-FIELD2"]

{"sheet":"棚卸表等","index":1,"n_rows":27,"n_cols":9,"rows_kept":27,"cut":false,"hidden":false,"merged":[]}
[]
[null,"日付等"]
[]
[null,"処理日",{"$f":"TEXT(SUBSTITUTE(TODAY(),\"/\",\",\"),\"YYY.MM.DD\")","v":"2023.07.06"}]
[null,"転記日",{"$f":"TEXT(EOMONTH(TODAY(),-1),\"YYYY.MM.DD\")","v":"2023.06.30"}]
[]
[]
[null,"棚卸報告書（税抜）",null,null,null,"前払金プルーフ（税込）※一般出金のみ　（それ以外のプルーフはパレットではないため入れない）"]
[]
[null,null,"枚数","金額",null,"金額",275000,"前払金A"]
["①","前月残",21,63000,"②",null,null,"前払金B","　"]
["➂","受入分",100,250000,"④"]
["➄","使用分",14,42000,"⑥"]
["➆","当月残",{"$f":"$C$11+$C$12-$C$13","v":107},{"$f":"$D$11+$D$12-$D$13","v":271000},"⑧"]
[null,null,null,null,null,"税抜",{"$f":"ROUND(SUM($G$10:$G$13)/1.1,1)","v":250000},{"$f":"IF($D$12=$G$15,\"　OK\",\"　※受入分の金額に相違あり\")","v":"　OK"},"④の受入金額と一致すると okがでる。"]
[]
[]
[]
[]
[]
[]
[]
[]
[]
[]
[null,"このファイルの保管場所"]
[null,"\\\\aws002\\001531036k$\\0402管理会計課\\☆月次☆\\★月次振替\\貯蔵品\\パレット"]

{"sheet":"DEN","index":2,"n_rows":47,"n_cols":41,"rows_kept":47,"cut":false,"hidden":false,"merged":[]}
[null,null,"X","　←　“X”を入力し、バッチインプットの処理モードを“E”で実行すると伝票概要画面で止まり、確認することが出来る"]
["伝票日付","会社","転記日付","伝票ﾀｲﾌﾟ","通貨ｺｰﾄﾞ","換算ﾚｰﾄ","参照伝票番号","ヘッダテキスト","税自動計算","転記ｷｰ","勘定コード","特殊GL","金額","国内通貨額","税ｺｰﾄﾞ","事業領域","原価センタ","利益センタ","ソートキー","明細テキスト","起算日","期日","振出日","支払方法","支払保留","取引先銀行","取引銀行","中央銀行CD","数量","数量単位","指図書","ＷＢＳ","得意先ｺｰﾄﾞ","品目ｺｰﾄﾞ","販売組織","流通ﾁｬﾈﾙ","製品部門","品目ｸﾞﾙｰﾌﾟ","営業所","営業グループ","需要家"]
[{"$f":"$A$7","v":"2023.07.06"},"NS",{"$f":"$C$7","v":"2023.06.30"},"SA","JPY",null,null,{"$f":"\"0442 パレット棚卸 \"&LEFT($C$7,7)","v":"0442 パレット棚卸 2023.06"},"X","40",351011,null,42000,null,null,null,"NS-0442",null,{"$f":"$Q$3","v":"NS-0442"},{"$f":"\"0442 パレット使用分(南港倉庫)  \"&LEFT($C$3,7)&\" (\"&TEXT(棚卸表等!$C$13,\"#,###\")&\"枚)\"","v":"0442 パレット使用分(南港倉庫)  2023.06 (14枚)"}]
[null,null,null,null,null,null,null,null,null,"40",127401,null,271000,null,null,"NS01",null,null,"NS-0442",{"$f":"\"0442 パレット翌月繰越(南港倉庫) \"&LEFT($C$3,7)&\" (\"&TEXT(棚卸表等!$C$14,\"#,###\")&\"枚)\"","v":"0442 パレット翌月繰越(南港倉庫) 2023.06 (107枚)"}]
["eof"]
[]
[{"$f":"棚卸表等!$C$4","v":"2023.07.06"},"NS",{"$f":"棚卸表等!$C$5","v":"2023.06.30"},"SA","JPY",null,null,{"$f":"\"0442 パレット受入 \"&LEFT($C$7,7)","v":"0442 パレット受入 2023.06"},"X","40",127401,null,{"$f":"SUM(棚卸表等!$G$10:$G$13)","v":275000},null,"AA","NS01",null,null,{"$f":"$Q$3","v":"NS-0442"},{"$f":"\"0442 パレット受入分(南港倉庫)  \"&LEFT($C$7,7)","v":"0442 パレット受入分(南港倉庫)  2023.06"}]
[]
[]
[null,null,null,null,null,null,null,null,null,null,null,null,null,null,null,null,null,127401,"貯蔵品"]
[null,null,null,null,null,null,null,null,null,null,null,null,null,null,null,null,null,351011,"原価-海貨(輸出)"]
[]
[]
[]
[]
[]
[]
[]
[]
[]
[null,null,null,null,null,null,null,null,null,null,null,null,null,null,null,null,null,"消込金額 1行目"]
[null,null,null,null,null,null,null,null,null,null,null,null,null,null,null,null,null,"前払金ア",{"$f":"棚卸表等!$G10","v":275000}]
[null,null,null,null,null,null,null,null,null,null,null,null,null,null,null,null,null,"前払金イ",{"$f":"棚卸表等!$G11","v":0}]
[null,null,null,null,null,null,null,null,null,null,null,null,null,null,null,null,null,"前払金ウ",{"$f":"棚卸表等!$G12","v":0}]
[]
[null,null,null,null,null,null,null,null,null,null,null,null,null,null,null,null,null,"消込金額 2行目"]
[null,null,null,null,null,null,null,null,null,null,null,null,null,null,null,null,null,"貯蔵品(前月繰越）",{"$f":"棚卸表等!$D$11","v":63000}]
[null,null,null,null,null,null,null,null,null,null,null,null,null,null,null,null,null,"貯蔵品（受入れ）",{"$f":"棚卸表等!$D$12","v":250000}]
[]
[]
[]
[null,null,null,null,null,null,null,null,"仕訳A　前払金を 今月受入れ貯蔵品＆仮払消費税に分ける"]
[null,null,null,null,null,null,null,null,40,"　",null,50]
[null,null,null,null,null,null,null,"④","貯蔵品(受入れ）",null,{"$f":"+M37-K35","v":250000},{"$f":"+R22","v":"前払金ア"},275000,null,null,"142102で引っ張ってくる"]
[null,null,null,null,null,null,null,null,"仮払消費税",null,{"$f":"+M37/1.1*0.1","v":25000},"前払金イ",0,null,null,"142102で引っ張ってくる"]
[null,null,null,null,null,null,null,null,null,null,null,"前払金ウ",0]
[null,null,null,null,null,null,null,null,null,null,{"$f":"SUM(K34:K36)","v":275000},"計",{"$f":"SUM(M34:M36)","v":275000}]
[]
[null,null,null,null,null,null,null,null,"仕訳B　　前月繰越+当月受入れ－当月残＝当月原価　"]
[null,null,null,null,null,null,null,null,40,null,null,50]
[null,null,null,null,null,null,null,"仕訳Aを転記すると出て来る：　⑥","払出原価",null,{"$f":"+M43-K42","v":42000},"貯蔵品（前月繰越）",{"$f":"+S27","v":63000},null,"➁","127401で引っ張ってくる"]
[null,null,null,null,null,null,null,"　仕分Aを転記すると出て来る： ⑧","貯蔵品\n(当月残）",null,{"$f":"+M4","v":271000},"貯蔵品(受入れ）",{"$f":"+K34","v":250000},null,"④","127401で引っ張ってくる（仕訳A で入力しているので、引っ張ってこれる）"]
[null,null,null,null,null,null,null,null,null,null,{"$f":"SUM(K41:K42)","v":313000},null,{"$f":"SUM(M41:M42)","v":313000}]
[]
[null,null,null,null,null,null,null,"➁","貯蔵品（前月繰越）",null,{"$f":"+S27","v":63000},"払出原価",{"$f":"+K47-M46","v":42000},null,"⑥"]
[null,null,null,null,null,null,null,"④",{"$f":"+I34","v":"貯蔵品(受入れ）"},null,{"$f":"+K34","v":250000},"貯蔵品\n(当月残）",{"$f":"+M4","v":271000},null,"⑧"]
[null,null,null,null,null,null,null,null,null,null,{"$f":"SUM(K45:K46)","v":313000},null,{"$f":"SUM(M45:M46)","v":313000}]

{"sheet":"BTIN","index":3,"n_rows":291,"n_cols":9,"rows_kept":291,"cut":false,"hidden":true,"merged":[]}
["識別","ﾌﾗｸﾞ","入力項目名","入力値","列","画面項目名",null,"INDEX"]
["P-01　",null,null,"一般勘定－明細",null,null,null,"P-01",3]
[2,null,"RF05A-NEWBS",null,"J","転記キー",null,"P-02",22]
[2,null,"RF05A-NEWKO",null,"K","勘定コード",null,"P-03",46]
[2,null,"BDC_OKCODE","/00",null,null,null,"P-04",67]
[1,"#","SAPLKACB","0002",null,null,null,"P-05",85]
[2,"#","BDC_OKCODE","/00",null,null,null,"P-06",108]
[1,null,"SAPMF05A","0300",null,null,null,"P-07",125]
[2,null,"BSEG-WRBTR",null,"M","金額",null,"P-08",142]
[2,null,"BSEG-DMBTR",null,"N","国内通貨額",null,"P-09",159]
[2,null,"BSEG-MWSKZ",null,"O","消費税コード",null,"P-10",181]
[2,null,"BSEG-VALUT",null,"U","起算日",null,"P-11",206]
[2,null,"BSEG-ZUONR",null,"S","ソートキー",null,"P-12",246]
[2,null,"BSEG-SGTXT",null,"T","明細テキスト",null,"P-13",261]
[2,null,"BDC_OKCODE","/00",null,null,null,"P-14",278]
[1,null,"SAPLKACB","0002"]
[2,null,"COBL-GSBER",null,"P","事業領域"]
[2,null,"BDC_OKCODE","/00"]
[1,null,"SAPMF05A","0300"]
["eof"]
["P-02　",null,null,"原価要素－明細"]
[2,null,"RF05A-NEWBS",null,"J","転記キー"]
[2,null,"RF05A-NEWKO",null,"K","勘定コード"]
[2,null,"BDC_OKCODE","/00"]
[1,"#","SAPLKACB","0002"]
[2,"#","BDC_OKCODE","/00"]
[1,null,"SAPMF05A","0300"]
[2,null,"BSEG-WRBTR",null,"M","金額"]
[2,null,"BSEG-DMBTR",null,"N","国内通貨額"]
[2,null,"BSEG-MWSKZ",null,"O","消費税コード"]
[2,null,"BSEG-ZUONR",null,"S","ソートキー"]
[2,null,"BSEG-SGTXT",null,"T","明細テキスト"]
[2,null,"BSEG-MENGE",null,"AC","数量"]
[2,null,"BSEG-MEINS",null,"AD","数量単位"]
[2,null,"BDC_OKCODE","/00"]
[1,null,"SAPLKACB","0002"]
[2,null,"COBL-GSBER",null,"P","事業領域"]
[2,null,"COBL-KOSTL",null,"Q","原価センタ"]
[2,null,"COBL-PRCTR",null,"R","利益センタ"]
[2,null,"COBL-AUFNR",null,"AE","指図書"]
[2,null,"COBL-PS_PSP_PNR",null,"AF","ＷＢＳ要素"]
[2,null,"BDC_OKCODE","/00"]
[1,null,"SAPMF05A","0300"]
["eof"]
["P-03",null,null,"棚卸資産－明細"]
[2,null,"RF05A-NEWBS",null,"J","転記キー"]
[2,null,"RF05A-NEWKO",null,"K","勘定コード"]
[2,null,"BDC_OKCODE","/00"]
[1,"#","SAPLKACB","0002"]
[2,"#","BDC_OKCODE","/00"]
[1,null,"SAPMF05A","0300"]
[2,null,"BSEG-WRBTR",null,"M","金額"]
[2,null,"BSEG-DMBTR",null,"N","国内通貨額"]
[2,null,"BSEG-MWSKZ",null,"O","消費税コード"]
[2,null,"BSEG-VALUT",null,"U","起算日"]
[2,null,"BSEG-ZUONR",null,"S","ソートキー"]
[2,null,"BSEG-SGTXT",null,"T","明細テキスト"]
[2,null,"BSEG-MENGE",null,"AC","数量"]
[2,null,"BSEG-MEINS",null,"AD","数量単位"]
[2,null,"BDC_OKCODE","/00"]
[1,null,"SAPLKACB","0002"]
[2,null,"COBL-GSBER",null,"P","事業領域"]
[2,null,"BDC_OKCODE","/00"]
[1,null,"SAPMF05A","0300"]
["eof"]
["P-04",null,null,"売掛金－明細"]
[2,null,"RF05A-NEWBS",null,"J","転記キー"]
[2,null,"RF05A-NEWKO",null,"K","勘定コード"]
[2,null,"BDC_OKCODE","/00"]
[1,"#","SAPLKACB","0002"]
[2,"#","BDC_OKCODE","/00"]
[1,null,"SAPMF05A","0301"]
[2,null,"BSEG-WRBTR",null,"M","金額"]
[2,null,"BSEG-DMBTR",null,"N","国内通貨額"]
[2,null,"BSEG-MWSKZ","**"]
[2,null,"BSEG-GSBER",null,"P","事業領域"]
[2,null,"BSEG-ZFBDT",null,"V","支払基準日"]
[2,null,"BSEG-ZLSCH",null,"X","支払方法"]
[2,"*","BSEG-ZTERM",null,null,"支払条件"]
[2,null,"BSEG-ZLSPR",null,"Y","支払保留"]
[2,null,"BSEG-ZUONR",null,"S","ソートキー"]
[2,null,"BSEG-SGTXT",null,"T","明細テキスト"]
["eof"]
["P-05",null,null,"買掛金－明細"]
[2,null,"RF05A-NEWBS",null,"J","転記キー"]
[2,null,"RF05A-NEWKO",null,"K","勘定コード"]
[2,null,"BDC_OKCODE","/00"]
[1,"#","SAPLKACB","0002"]
[2,"#","BDC_OKCODE","/00"]
[1,null,"SAPMF05A","0302"]
[2,null,"BSEG-WRBTR",null,"M","金額"]
[2,null,"BSEG-DMBTR",null,"N","国内通貨額"]
[2,null,"BSEG-MWSKZ","**"]
[2,null,"BSEG-GSBER",null,"P","事業領域"]
[2,null,"BSEG-ZFBDT",null,"V","支払基準日"]
[2,null,"BSEG-ZLSCH",null,"X","支払方法"]
[2,"*","BSEG-ZTERM",null,null,"支払条件"]
[2,null,"BSEG-ZLSPR",null,"Y","支払保留"]
[2,null,"BSEG-ZUONR",null,"S","ソートキー"]
[2,null,"BSEG-SGTXT",null,"T","明細テキスト"]
[2,null,"BDC_OKCODE","/07"]
[1,null,"SAPMF05A","0332"]
[2,null,"BSEG-BVTYP",null,"Z","取引先銀行"]
[2,null,"BSEG-HBKID",null,"AA","取引銀行"]
[2,null,"BSEG-LZBKZ",null,"AB","中央銀行CD"]
["eof"]
["P-06",null,null,"受取手形－明細"]
[2,null,"RF05A-NEWBS",null,"J","転記キー"]
[2,null,"RF05A-NEWKO",null,"K","勘定コード"]
[2,null,"RF05A-NEWUM",null,"L","特殊G/L"]
[2,null,"BDC_OKCODE","/00"]
[1,"#","SAPLKACB","0002"]
[2,"#","BDC_OKCODE","/00"]
[1,null,"SAPMF05A","2320"]
[2,null,"BSEG-WRBTR",null,"M","金額"]
[2,null,"BSEG-DMBTR",null,"N","国内通貨額"]
[2,null,"BSEG-GSBER",null,"P","事業領域"]
[2,null,"BSEG-ZUONR",null,"S","ソートキー"]
[2,null,"BSEG-SGTXT",null,"T","明細テキスト"]
[2,null,"BSEG-ZFBDT",null,"V","期日"]
[2,null,"BSED-WDATE",null,"W","振出日"]
[2,null,"BSEG-ZLSCH",null,"X","支払方法"]
["eof"]
["P-07",null,null,"支払手形－明細"]
[2,null,"RF05A-NEWBS",null,"J","転記キー"]
[2,null,"RF05A-NEWKO",null,"K","勘定コード"]
[2,null,"RF05A-NEWUM",null,"L","特殊G/L"]
[2,null,"BDC_OKCODE","/00"]
[1,"#","SAPLKACB","0002"]
[2,"#","BDC_OKCODE","/00"]
[1,null,"SAPMF05A","2320"]
[2,null,"BSEG-WRBTR",null,"M","金額"]
[2,null,"BSEG-DMBTR",null,"N","国内通貨額"]
[2,null,"BSEG-GSBER",null,"P","事業領域"]
[2,null,"BSEG-ZUONR",null,"S","ソートキー"]
[2,null,"BSEG-SGTXT",null,"T","明細テキスト"]
[2,null,"BSEG-ZFBDT",null,"V","期日"]
[2,null,"BSED-WDATE",null,"W","振出日"]
[2,null,"BSEG-ZLSCH",null,"X","支払方法"]
["eof"]
["P-08",null,null,"得意先(特殊仕訳)－明細"]
[2,null,"RF05A-NEWBS",null,"J","転記キー"]
[2,null,"RF05A-NEWKO",null,"K","勘定コード"]
[2,null,"RF05A-NEWUM",null,"L","特殊G/L"]
[2,null,"BDC_OKCODE","/00"]
[1,"#","SAPLKACB","0002"]
[2,"#","BDC_OKCODE","/00"]
[1,null,"SAPMF05A","0303"]
[2,null,"BSEG-WRBTR",null,"M","金額"]
[2,null,"BSEG-DMBTR",null,"N","国内通貨額"]
[2,null,"BSEG-GSBER",null,"P","事業領域"]
[2,null,"BSEG-ZFBDT",null,"V","期日"]
[2,null,"BSEG-ZLSCH",null,"X","支払方法"]
[2,null,"BSEG-ZLSPR",null,"Y","支払保留"]
[2,null,"BSEG-ZUONR",null,"S","ソートキー"]
[2,null,"BSEG-SGTXT",null,"T","明細テキスト"]
["eof"]
["P-09",null,null,"仕入先(特殊仕訳)－明細"]
[2,null,"RF05A-NEWBS",null,"J","転記キー"]
[2,null,"RF05A-NEWKO",null,"K","勘定コード"]
[2,null,"RF05A-NEWUM",null,"L","特殊G/L"]
[2,null,"BDC_OKCODE","/00"]
[1,"#","SAPLKACB","0002"]
[2,"#","BDC_OKCODE","/00"]
[1,null,"SAPMF05A","0303"]
[2,null,"BSEG-WRBTR",null,"M","金額"]
[2,null,"BSEG-DMBTR",null,"N","国内通貨額"]
[2,null,"BSEG-GSBER",null,"P","事業領域"]
[2,null,"BSEG-ZFBDT",null,"V","期日"]
[2,null,"BSEG-ZLSCH",null,"X","支払方法"]
[2,null,"BSEG-ZLSPR",null,"Y","支払保留"]
[2,null,"BSEG-ZUONR",null,"S","ソートキー"]
[2,null,"BSEG-SGTXT",null,"T","明細テキスト"]
[2,null,"BDC_OKCODE","/07"]
[1,null,"SAPMF05A","0332"]
[2,null,"BSEG-BVTYP",null,"Z","取引先銀行"]
[2,null,"BSEG-HBKID",null,"AA","取引銀行"]
[2,null,"BSEG-LZBKZ",null,"AB","中央銀行CD"]
["eof"]
["P-10",null,null,"収益・費用－明細"]
[2,null,"RF05A-NEWBS",null,"J","転記キー"]
[2,null,"RF05A-NEWKO",null,"K","勘定コード"]
[2,null,"BDC_OKCODE","/00"]
[1,"#","SAPLKACB","0002"]
[2,"#","BDC_OKCODE","/00"]
[1,null,"SAPMF05A","0300"]
[2,null,"BSEG-WRBTR",null,"M","金額"]
[2,null,"BSEG-DMBTR",null,"N","国内通貨額"]
[2,null,"BSEG-MWSKZ",null,"O","消費税コード"]
[2,null,"BSEG-VALUT",null,"U","起算日"]
[2,null,"BSEG-ZUONR",null,"S","ソートキー"]
[2,null,"BSEG-SGTXT",null,"T","明細テキスト"]
[2,null,"BSEG-MENGE",null,"AC","数量"]
[2,null,"BSEG-MEINS",null,"AD","数量単位"]
[2,null,"BDC_OKCODE","/00"]
[1,null,"SAPLKACB","0002"]
[2,null,"COBL-GSBER",null,"P","事業領域"]
[2,null,"COBL-KOSTL",null,"Q","原価センタ"]
[2,null,"COBL-PRCTR",null,"R","利益センタ"]
[2,null,"COBL-AUFNR",null,"AE","指図書"]
[2,null,"COBL-PS_PSP_PNR",null,"AF","ＷＢＳ要素"]
[2,null,"BDC_OKCODE","/00"]
[1,null,"SAPMF05A","0300"]
["eof"]
["P-11",null,null,"売上・販売直接費－明細(収益性分析）"]
[2,null,"RF05A-NEWBS",null,"J","転記キー"]
[2,null,"RF05A-NEWKO",null,"K","勘定コード"]
[2,null,"BDC_OKCODE","/00"]
[1,"#","SAPLKACB","0002"]
[2,"#","BDC_OKCODE","/00"]
[1,null,"SAPMF05A","0300"]
[2,null,"BSEG-WRBTR",null,"M","金額"]
[2,null,"BSEG-DMBTR",null,"N","国内通貨額"]
[2,null,"BSEG-MWSKZ",null,"O","消費税コード"]
[2,null,"BSEG-ZUONR",null,"S","ソートキー"]
[2,null,"BSEG-SGTXT",null,"T","明細テキスト"]
[2,null,"BSEG-MENGE",null,"AC","数量"]
[2,null,"BSEG-MEINS",null,"AD","数量単位"]
[2,null,"BDC_OKCODE","/00"]
[1,null,"SAPLKACB","0002"]
[2,null,"COBL-GSBER",null,"P","事業領域"]
[2,null,"COBL-KOSTL",null,"Q","原価センタ"]
[2,null,"COBL-PRCTR",null,"R","利益センタ"]
[2,null,"COBL-AUFNR",null,"AE","指図書"]
[2,null,"COBL-PS_PSP_PNR",null,"AF","ＷＢＳ要素"]
[2,null,"DKACB-XERGO","X",null,"詳細"]
[2,null,"BDC_OKCODE","/00"]
[1,null,"SAPLKEAK","0300"]
[2,null,"RKEAK-FIELD(1)",null,"AG","得意先コード"]
[2,null,"RKEAK-FIELD(2)",null,"AH","品目コード"]
[2,null,"RKEAK-FIELD(6)",null,"AI","販売組織"]
[2,null,"RKEAK-FIELD(7)",null,"AJ","流通チャネル"]
[2,null,"RKEAK-FIELD(8)",null,"AK","製品部門"]
[2,null,"RKEAK-FIELD(15)",null,"AL","品目ｸﾞﾙｰﾌﾟ"]
[2,null,"BDC_OKCODE","P+"]
[1,null,"SAPLKEAK","0300"]
[2,null,"RKEAK-FIELD(2)",null,"AM","営業所"]
[2,null,"RKEAK-FIELD(3)",null,"AN","営業グループ"]
[2,null,"BDC_OKCODE","P+"]
[1,null,"SAPLKEAK","0300"]
[2,null,"RKEAK-FIELD(11)",null,"AO","需要家"]
[2,null,"BDC_OKCODE","WEIT"]
[1,null,"SAPMF05A","0300"]
["eof"]
["P-12",null,null,"消費税－明細"]
[2,null,"RF05A-NEWBS",null,"J","転記キー"]
[2,null,"RF05A-NEWKO",null,"K","勘定コード"]
[2,null,"BDC_OKCODE","/00"]
[1,"#","SAPLKACB","0002"]
[2,"#","BDC_OKCODE","/00"]
[1,null,"SAPMF05A","0312"]
[2,null,"BSEG-WRBTR",null,"M","金額"]
[2,null,"BSEG-DMBTR",null,"N","国内通貨額"]
[2,null,"RF05A-XSTBA","X",null,"課税基準額決定"]
[2,null,"BSEG-MWSKZ",null,"O","消費税コード"]
[2,null,"BSEG-GSBER",null,"P","事業領域"]
[2,null,"BSEG-ZUONR",null,"S","ソートキー"]
[2,null,"BSEG-SGTXT",null,"T","明細テキスト"]
["eof"]
["P-13",null,null,"得意先(特殊仕訳:前受金･借方)－明細"]
[2,null,"RF05A-NEWBS",null,"J","転記キー"]
[2,null,"RF05A-NEWKO",null,"K","勘定コード"]
[2,null,"RF05A-NEWUM",null,"L","特殊G/L"]
[2,null,"BDC_OKCODE","/00"]
[1,"#","SAPLKACB","0002"]
[2,"#","BDC_OKCODE","/00"]
[1,null,"SAPMF05A","0304"]
[2,null,"BSEG-WRBTR",null,"M","金額"]
[2,null,"BSEG-DMBTR",null,"N","国内通貨額"]
[2,null,"BSEG-GSBER",null,"P","事業領域"]
[2,null,"BSEG-ZFBDT",null,"V","期日"]
[2,null,"BSEG-ZLSCH",null,"X","支払方法"]
[2,null,"BSEG-ZLSPR",null,"Y","支払保留"]
[2,null,"BSEG-ZUONR",null,"S","ソートキー"]
[2,null,"BSEG-SGTXT",null,"T","明細テキスト"]
["eof"]
["P-14",null,null,"得意先(特殊仕訳:前受金･貸方)－明細"]
[2,null,"RF05A-NEWBS",null,"J","転記キー"]
[2,null,"RF05A-NEWKO",null,"K","勘定コード"]
[2,null,"RF05A-NEWUM",null,"L","特殊G/L"]
[2,null,"BDC_OKCODE","/00"]
[1,"#","SAPLKACB","0002"]
[2,"#","BDC_OKCODE","/00"]
[1,null,"SAPMF05A","0304"]
[2,null,"BSEG-WRBTR",null,"M","金額"]
[2,null,"BSEG-DMBTR",null,"N","国内通貨額"]
[2,null,"BSEG-GSBER",null,"P","事業領域"]
[2,null,"BSEG-ZFBDT",null,"V","期日"]
[2,null,"BSEG-ZUONR",null,"S","ソートキー"]
[2,null,"BSEG-SGTXT",null,"T","明細テキスト"]
["eof"]

{"sheet":"TBL","index":4,"n_rows":58,"n_cols":50,"rows_kept":58,"cut":false,"hidden":true,"merged":[]}
["勘定","行",null,"転記ｷｰ","ﾀｲﾌﾟ","特殊","勘定(開始)","勘定(終了)","ﾊﾟﾀｰﾝ","勘定名",null,null,null,"転記ｷｰ","ﾀｲﾌﾟ","特殊","勘定(開始)","勘定(終了)","ﾊﾟﾀｰﾝ","勘定名",null,null,null,"転記ｷｰ","ﾀｲﾌﾟ","特殊","勘定(開始)","勘定(終了)","ﾊﾟﾀｰﾝ","勘定名",null,null,null,"転記ｷｰ","ﾀｲﾌﾟ","特殊","勘定(開始)","勘定(終了)","ﾊﾟﾀｰﾝ","勘定名",null,null,null,"転記ｷｰ","ﾀｲﾌﾟ","特殊","勘定(開始)","勘定(終了)","ﾊﾟﾀｰﾝ","勘定名"]
[1,2,19,"40/50","Ｓ",null,100010,109999,"P-01"," 現金／預金",null,null,null,"09/19","Ｄ","W",112110,112119,"P-06"," 受取手形",null,null,null,"29/39","Ｋ","W",411100,411100,"P-07"," 支払手形",null,null,null,"21/31","K",null,"412100",412109,"P-05"," 買掛金",null,null,null,"01/11","D",null,"113100",113199,"P-04"," 売掛金"]
[2,20,24,"40/50","Ｓ",null,113999,113999,"P-01"," 売掛金-調整",null,null,null,"09/19","Ｄ","M",145100,145100,"P-08"," 未収入金",null,null,null,"29/39","Ｋ","N",414100,414100,"P-09"," 未払金",null,null,null,"21/31","K",null,415100,415100,"P-09"," 未払費用",null,null,null,"01/11","D",null,113200,113200,"P-04"," 社内売掛金"]
[3,25,28,"40/50","Ｓ",null,"114000",116099,"P-01"," 有価証券／自己株式／預け金",null,null,null,"09/19","Ｄ","X",147101,147101,"P-08"," 営業立替金",null,null,null,"29/39","Ｋ","Q",414300,414300,"P-09"," 未払金（有形固定資産）",null,null,null,"eof",null,null,null,null,null,null,null,null,null,"eof"]
[4,29,39,"40/50","Ｓ",null,"121100",127900,"P-03"," 棚卸資産",null,null,null,"09/19","Ｄ","R",147105,147105,"P-08"," 代理店勘定（債権)",null,null,null,"29/39","Ｋ","R",414400,414400,"P-09"," 未払金（無形固定資産）"]
["5",40,41,"40/50","Ｓ",null,135000,140199,"P-02"," 未成工事",null,null,null,"09/19","Ｄ","S",147107,147107,"P-08"," 海外代理店勘定(債権)",null,null,null,"29/39","Ｋ","K",415100,415100,"P-09"," 未払費用"]
["7",42,43,"40/50","Ｓ",null,"141101",141199,"P-01"," 前渡金",null,null,null,"09/19","Ｄ","T",147109,147109,"P-08"," 関係会社立替金",null,null,null,"29/39","Ｋ","U",418305,418305,"P-09"," 代理店勘定預り金"]
[8,44,51,"40/50","Ｓ",null,"142101",142199,"P-01"," 前払費用",null,null,null,"09/19","Ｄ","Q",411910,411919,"P-08"," 割引手形",null,null,null,"29/39","Ｋ","Y",418307,418307,"P-09"," 海外代理店勘定（債務）"]
["9",52,53,"40/50","Ｓ",null,144100,144199,"P-01"," 短期貸付金",null,null,null,"09/19","Ｄ","U",411920,411929,"P-08"," 譲渡手形",null,null,null,"29/39","Ｋ","V",441011,441011,"P-09"," 仮受金－運賃（特定）"]
["eof",null,null,"40/50","Ｓ",null,145110,145199,"P-01"," 未収入金",null,null,null,"09/19","Ｄ","A","416100","416100","P-13"," 前受金",null,null,null,"eof"]
[null,null,null,"40/50","Ｓ",null,146100,146199,"P-01"," 前渡金",null,null,null,"09/19","Ｄ","C","441000","441000","P-13"," 仮受金-仮受売掛"]
[null,null,null,"40/50","Ｓ",null,147100,147199,"P-01"," 社内立替金",null,null,null,"eof"]
[null,null,null,"40/50","Ｓ",null,147200,147299,"P-01"," 関係会社立替金"]
[null,null,null,"40/50","Ｓ",null,148100,148199,"P-01"," 仮払金"]
[null,null,null,"40/50","Ｓ",null,"148200",148209,"P-12"," 仮払消費税"]
[null,null,null,"40/50","Ｓ",null,"148210","148210","P-01"," 輸入消費税"]
[null,null,null,"40/50","Ｓ",null,"148220",148399,"P-01"," 仮払法人税／仮払利子割"]
[null,null,null,"40/50","Ｓ",null,148500,170999,"P-01"," 立替金／引当金等"]
[]
[null,null,null,"40/50","Ｓ",null,227000,241500,"P-02"," 建設仮勘定"]
[null,null,null,"40/50","Ｓ",null,"261100",262999,"P-01"," 投資有価証券／株式／出資金"]
[null,null,null,"40/50","Ｓ",null,"263500",271099,"P-01"," 長期貸付金(他）"]
[null,null,null,"40/50","Ｓ",null,"281000",292999,"P-01"," 長期前払費用／貸倒引当金"]
[]
[null,null,null,"40/50","Ｓ",null,351000,359999,"P-02"," 生産原価"]
[null,null,null,"40/50","Ｓ",null,361000,361000,"P-02"," 仕入原価"]
[null,null,null,"40/50","Ｓ",null,372001,386400,"P-01"," 事業部勘定勘定"]
[]
[null,null,null,"40/50","Ｓ",null,412999,412999,"P-01"," 買掛金-調整"]
[null,null,null,"40/50","Ｓ",null,"413100",413699,"P-01"," 短期/長期借入金"]
[null,null,null,"40/50","Ｓ",null,414101,415299,"P-01"," 未払金"]
[null,null,null,"40/50","Ｓ",null,416199,416199,"P-01"," 前受金-調整"]
[null,null,null,"40/50","Ｓ",null,"417100",418399,"P-01"," 諸預り金"]
[null,null,null,"40/50","Ｓ",null,"422100",422199,"P-12"," 仮受消費税"]
[null,null,null,"40/50","Ｓ",null,422300,422599,"P-01"," その他流動負債"]
[null,null,null,"40/50","Ｓ",null,441001,441099,"P-01"," 仮受金"]
[null,null,null,"40/50","Ｓ",null,462100,462199,"P-01"," 原価仮勘定"]
[null,null,null,"40/50","Ｓ",null,499000,499000,"P-01"," 在庫初期化"]
[]
[null,null,null,"40/50","Ｓ",null,510000,599999,"P-01"," 長期借入金・引当金関係"]
[]
[null,null,null,"40/50","Ｓ",null,700000,7999999,"P-01"," 資本金"]
[]
[null,null,null,"40/50","Ｓ",null,811100,812999,"P-11"," 売上"]
[null,null,null,"40/50","Ｓ",null,820000,823999,"P-01"," 原価"]
[null,null,null,"40/50","Ｓ",null,824100,827999,"P-02"," 一般管理費"]
[null,null,null,"40/50","Ｓ",null,861000,878399,"P-10"," 受取利息／営業収益／特別利益"]
[null,null,null,"40/50","Ｓ",null,881000,882999,"P-02","支払利息／借入金利息／社債利息"]
[null,null,null,"40/50","Ｓ",null,883400,883599,"P-02"," 原価差額"]
[null,null,null,"40/50","Ｓ",null,884000,886999,"P-02"," 営業外費用／特別損失"]
[]
[null,null,null,"40/50","Ｓ",null,980000,9999999,"P-01"," 税その他"]
[]
[null,null,null,"eof"]
[null,null,null,"　※タイプ(勘定ﾀｲﾌﾟ）・・・Ｓ：勘定コード，Ｄ：得意先コード，Ｋ：仕入先コード"]
[]
["勘定：勘定の最初の一桁"]
["行：開始行"]

{"sheet":"入力","index":5,"n_rows":46,"n_cols":7,"rows_kept":46,"cut":false,"hidden":true,"merged":[]}
[]
[]
[]
[]
[null,"セル","項 目 名 称","分　　　類","項 目 名",null,"備　　　　　　考"]
[null,"Ａ列"," 伝票日付","　ヘッダ部","BLDAT"]
[null,"Ｂ列"," 会社コード",null,"BUKRS"]
[null,"Ｃ列"," 転記日付",null,"BUDAT"]
[null,"Ｄ列"," 伝票タイプ",null,"BLART"]
[null,"Ｅ列"," 通貨コード",null,"WAERS"]
[null,"Ｆ列"," 換算レート",null,"KURSF"]
[null,"Ｇ列"," 参照伝票番号",null,"XBLNR"]
[null,"Ｈ列"," ヘッダテキスト",null,"BKTXT"]
[null,"Ｉ列"," 税自動計算",null,"XMWST"]
[null,"Ｊ列"," 転記キー","　明細部","NEWBS"]
[null,"Ｋ列"," 勘定",null,"NEWKO"]
[null,"Ｌ列"," 特殊Ｇ／Ｌ",null,"NEWUM"]
[null,"Ｍ列"," 金額",null,"WRBTR"]
[null,"Ｎ列"," 国内通貨額",null,"DMBTR"]
[null,"Ｏ列"," 消費税コード",null,"MWSKZ"]
[null,"Ｐ列"," ソートキー",null,"ZUONR"]
[null,"Ｑ列"," 明細テキスト",null,"SGTXT"]
[null,"Ｒ列"," 起算日",null,"VALUT"]
[null,"Ｓ列"," 期日",null,"ZFBDT"]
[null,"Ｔ列"," 振出日",null,"WDATE"]
[null,"Ｕ列"," 支払方法",null,"ZLSCH"]
[null,"Ｖ列"," 支払保留",null,"ZLSPR"]
[null,"Ｗ列"," 取引先銀行",null,"BVTYP"]
[null,"Ｘ列"," 取引銀行",null,"HBKID"]
[null,"Ｙ列"," 中央銀行コード",null,"LZBKZ"]
[null,"Ｚ列"," 数量",null,"MENGE"]
[null,"AA列"," 数量単位",null,"MEINS"]
[null,"AB列"," 事業領域",null,"GSBER"]
[null,"AC列"," 原価センタ",null,"KOSTL"]
[null,"AD列"," 利益センタ",null,"PRCTR"]
[null,"AE列"," 指図書",null,"AUFNR"]
[null,"AF列"," ＷＢＳ",null,"PS_PSP_PNR"]
[null,"AG列"," 得意先コード",null,"RKEAK-FIELD1"]
[null,"AH列"," 品目コード",null,"RKEAK-FIELD2"]
[null,"AI列"," 販売組織",null,"RKEAK-FIELD6"]
[null,"AJ列"," 流通チャネル",null,"RKEAK-FIELD7"]
[null,"AK列","製品部門",null,"RKEAK-FIELD8"]
[null,"AL列","品目ｸﾞﾙｰﾌﾟ",null,"RKEAK-FIELD9"]
[null,"AM列","営業所",null,"RKEAK-FIELD2"]
[null,"AN列","営業グループ",null,"RKEAK-FIELD3"]
[null,"AO列","需要家",null,"RKEAK-FIELD2"]

{"sheet":"部課コード表","index":7,"n_rows":422,"n_cols":10,"rows_kept":422,"cut":false,"hidden":true,"merged":[[1,1,1,7],[3,0,3,1],[9,0,11,0],[9,1,11,1],[9,2,11,2],[9,3,11,3],[9,5,9,7],[10,5,11,6],[10,7,11,7]]}
[]
[null,"2016年度　部課コード表"]
[]
["2016.04.26"]
[]
[null,"※NEOS一般出金依頼票 【摘要検索】選択時に下記経費科目区分を参照してください。"]
[null,"※\"R3情報\"は経理部使用。"]
[]
[]
["部門コード","部課コ－ド","部　課　名　称","経費科目区分",null,"R3情報"]
[null,null,null,null,null,"事業領域",null,"原価センター区分"]
[]
[null,10,"本社"]
[10,"0100","本社　本社","管理",null,"NS00","全社","一般管理費部門"]
[10,"0101","本社　役員","管理",null,"NS00","全社","一般管理費部門"]
[10,"0102","本社　執行役員","管理",null,"NS00","全社","一般管理費部門"]
[10,"0105","本社　弁護士・会計士","管理",null,"NS00","全社","一般管理費部門"]
[10,"0109","本社　全社・経費","管理",null,"NS00","全社","一般管理費部門"]
[10,"0181","本社　市川社宅","管理",null,"NS00","全社","一般管理費部門"]
[10,"0182","本社　浅間台家族寮","管理",null,"NS00","全社","一般管理費部門"]
[10,"0183","本社　浅間台独身寮","管理",null,"NS00","全社","一般管理費部門"]
[10,"0188","本社　白浜荘","管理",null,"NS00","全社","一般管理費部門"]
[10,"0189","本社　女子独身寮","管理",null,"NS00","全社","一般管理費部門"]
[10,"0191","本社　出向・国内","管理",null,"NS00","全社","一般管理費部門"]
[10,"0193","本社　顧問・嘱託","管理",null,"NS00","全社","一般管理費部門"]
[10,"0194","本社　長期療養者","管理",null,"NS00","全社","一般管理費部門"]
[10,"0204","本社　出向・米州","管理",null,"NS00","全社","一般管理費部門"]
[10,"0206","本社　出向・欧州","管理",null,"NS00","全社","一般管理費部門"]
[10,"0207","本社　出向・中国","管理",null,"NS00","全社","一般管理費部門"]
[10,"0209","本社　出向・アジア","管理",null,"NS00","全社","一般管理費部門"]
[10,"0895","営業本部","管理",null,"NS00","全社","一般管理費部門"]
[null,71,"監査部"]
[71,"0710","監査部","管理",null,"NS00","全社","一般管理費部門"]
[71,"0880","監査部　ＡＥＯ統轄室","管理",null,"NS00","全社","一般管理費部門"]
[null,72,"経営企画部"]
[72,"0720","経営企画部　本部","管理",null,"NS00","全社","一般管理費部門"]
[72,"0760","経営企画部　業務管理室","管理",null,"NS00","全社","一般管理費部門"]
[null,12,"総務コンプライアンス部"]
[12,"0120","総務コンプライアンス部　本部","管理",null,"NS00","全社","一般管理費部門"]
[12,"0121","総務コンプライアンス部　総務課","管理",null,"NS00","全社","一般管理費部門"]
[12,"0124","総務コンプライアンス部　総務課　社内報","管理",null,"NS00","全社","一般管理費部門"]
[12,"0127","総務コンプライアンス部　法務課","管理",null,"NS00","全社","一般管理費部門"]
[12,"0128","総務コンプライアンス部　持株会","管理",null,"NS00","全社","一般管理費部門"]
[12,"0129","総務コンプライアンス部　（共通）","管理",null,"NS00","全社","一般管理費部門"]
[12,"0150","総務コンプライアンス部　秘書室　　　　　　　","管理",null,"NS00","全社","一般管理費部門"]
[12,"0151","総務コンプライアンス部　秘書室　乗用車関係　　","管理",null,"NS00","全社","一般管理費部門"]
[null,14,"人事部"]
[14,"0140","人事部　本部","管理",null,"NS00","全社","一般管理費部門"]
[14,"0143","人事部　海外人事課","管理",null,"NS00","全社","一般管理費部門"]
[14,"0142","人事部　給与厚生課","管理",null,"NS00","全社","一般管理費部門","※","2016-04名称変更"]
[14,"0141","人事部　人材開発課","管理",null,"NS00","全社","一般管理費部門"]
[14,"0144","人事部　労政課","管理",null,"NS00","全社","一般管理費部門","※","2016-04新設"]
[14,"0146","人事部　文化体育担当","管理",null,"NS00","全社","一般管理費部門"]
[14,"0147","人事部　海外研修員","管理",null,"NS00","全社","一般管理費部門"]
[14,"0149","人事部　共通(人事)","管理",null,"NS00","全社","一般管理費部門"]
[null,16,"安全環境管理部"]
[16,"0160","安全環境管理部　本部","管理",null,"NS00","全社","一般管理費部門"]
[16,"0161","安全環境管理部　環境管理課","管理",null,"NS00","全社","一般管理費部門"]
[16,"0162","安全環境管理部　安全管理課","管理",null,"NS00","全社","一般管理費部門"]
[null,11,"総合システム部"]
[11,"0110","総合システム部　本部","管理",null,"NS00","全社","一般管理費部門"]
[11,"0114","総合システム部　海外システム課","管理",null,"NS00","全社","一般管理費部門","※","2016-04名称変更"]
[11,"0115","総合システム部　国内システム課","管理",null,"NS00","全社","一般管理費部門","※","2016-04名称変更"]
[11,"0112","総合システム部　システム管理課","管理",null,"NS00","全社","一般管理費部門","※","2016-04名称変更"]
[11,"0113","総合システム部　システム営業課","管理",null,"NS00","全社","一般管理費部門","※","2016-04復活"]
[11,"0116","総合システム部　関西システム課","管理",null,"NS00","全社","一般管理費部門","※","2016-04復活"]
[11,"0118","総合システム部　社内レンタル","管理",null,"NS00","全社","一般管理費部門"]
[11,"0119","総合システム部　コンピュータ共通経費","管理",null,"NS00","全社","一般管理費部門"]
[11,"0701","総合システム部　新海上システム管理コード","管理",null,"NS01","国際海上貨物","一般管理費部門","※","2016-04本社より編入、名称変更"]
[11,"0702","総合システム部　新航空システム管理コード","管理",null,"NS02","国際航空事業","一般管理費部門","※","2016-04本社より編入、名称変更"]
[11,"0703","総合システム部　新倉庫システム管理コード","管理",null,"NS04","倉庫（含む物流センター）","一般管理費部門","※","2016-04本社より編入、名称変更"]
[11,"0704","総合システム部　CATOS管理コード","管理",null,"NS06","関連事業","一般管理費部門","※","2016-04本社より編入、名称変更"]
[11,"0705","総合システム部　新会計システム","管理",null,"NS00","全社","一般管理費部門","※","2016-04本社より編入、名称変更"]
[11,"0706","総合システム部　代理店システム","管理",null,"NS00","全社","一般管理費部門","※","2016-04本社より編入、名称変更"]
[11,"0707","総合システム部　海外システム管理コード","管理",null,"NS01","国際海上貨物","一般管理費部門","※","2016-04本社より編入、名称変更"]
[null,82,"不動産室"]
[82,"0820","不動産室","管理",null,"NS00","全社","一般管理費部門"]
[82,"0821","不動産室　ＣＲＥ企画課","管理",null,"NS00","全社","一般管理費部門"]
[82,"0822","不動産室　施設管財課","管理",null,"NS00","全社","一般管理費部門"]
[82,"0197","不動産室　不動産事業管理コード","管理",null,"NS07","不動産業","一般管理費部門","※","2016-04本社より編入、名称変更"]
[null,13,"経理部"]
[13,"0130","経理部　本部","管理",null,"NS00","全社","一般管理費部門"]
[13,"0402","経理部　管理会計課","管理",null,"NS00","全社","一般管理費部門","※","2016-04名称変更"]
[13,"0403","経理部　財務会計課","管理",null,"NS00","全社","一般管理費部門","※","2016-04名称変更"]
[13,"0134","経理部　債権管理課","管理",null,"NS00","全社","一般管理費部門"]
[13,"0139","経理部　関係会社経理課","管理",null,"NS00","全社","一般管理費部門","※","2016-04名称変更"]
[13,"0131","経理部　資金課","管理",null,"NS00","全社","一般管理費部門"]
[13,"0409","経理部　国際課税対応準備室","管理",null,"NS00","全社","一般管理費部門"]
[null,83,"事業戦略部"]
[83,"0830","事業戦略部　本部","管理",null,"NS01","国際海上貨物","販売管理部門"]
[83,"0170","事業戦略部　関係会社統括室","管理",null,"NS00","全社","一般管理費部門"]
[83,"0825","事業戦略部　物流企画課","管理",null,"NS00","全社","一般管理費部門","※","2016-04名称変更"]
[83,"0833","事業戦略部　物流品質改善室","管理",null,"NS01","国際海上貨物","販売管理部門"]
[83,"0836","事業戦略部　開発チーム","管理",null,"NS01","国際海上貨物","販売管理部門"]
[83,"0832","事業戦略部　インド室","管理",null,"NS01","国際海上貨物","販売管理部門"]
[83,"0751","事業戦略部　中国室","管理",null,"NS01","国際海上貨物","販売管理部門"]
[83,"0827","事業戦略部　業務高度化推進室","管理",null,"NS01","国際海上貨物","販売管理部門","※","2016-04新設"]
[null,84,"海外地域本部"]
[84,"0752","海外地域本部　中国本部　北京事務所","管理",null,"NS01","国際海上貨物","販売管理部門"]
[84,"0753","海外地域本部　中国本部　上海事務所","管理",null,"NS01","国際海上貨物","販売管理部門"]
[84,"0834","海外地域本部　アジア本部　ヤンゴン駐在員事務所","管理",null,"NS01","国際海上貨物","販売管理部門"]
[84,"0840","海外地域本部　米州本部　米州統轄","管理",null,"NS00","全社","一般管理費部門"]
[84,"0841","海外地域本部　欧州本部　欧州統轄","管理",null,"NS00","全社","一般管理費部門"]
[84,"0838","海外地域本部　アジア本部　アジア統轄","管理",null,"NS00","全社","一般管理費部門"]
[84,"0839","海外地域本部　中国本部　中国統轄","管理",null,"NS00","全社","一般管理費部門"]
[84,"0745","海外地域本部　欧州本部　アルマトイ駐在員事務所","管理",null,"NS01","国際海上貨物","販売管理部門"]
[84,"0749","海外地域本部　欧州本部　モスクワ駐在員事務所","管理",null,"NS01","国際海上貨物","販売管理部門"]
[84,"0842","海外地域本部　アジア本部　プノンペン駐在員事務所","管理",null,"NS00","全社","一般管理費部門"]
[null,41,"総合営業第三部"]
[41,"0410","総合営業第三部　本部","管理",null,"NS03","国内輸送","販売管理部門"]
[41,"0413","総合営業第三部　営業第一課","管理",null,"NS06","関連事業","販売管理部門"]
[41,"0427","総合営業第三部　鶴見営業課","原価",null,"NS03","国内輸送","生産原価部門","※","2016-04名称変更"]
[41,"0412","総合営業第三部　営業第二課","管理",null,"NS03","国内輸送","販売管理部門"]
[41,"0420","総合営業第三部　営業第二課　川崎化成品油槽所","原価",null,"NS03","国内輸送","生産原価部門"]
[41,"0236","総合営業第三部　営業第二課　浮島営業所","原価",null,"NS03","国内輸送","生産原価部門"]
[41,"0422","総合営業第三部　営業第二課　茨城営業所","原価",null,"NS03","国内輸送","生産原価部門"]
[41,"0418","総合営業第三部　倉庫・内航営業課","管理",null,"NS03","国内輸送","販売管理部門","※","2016-04名称変更"]
[41,"0414","総合営業第三部　倉庫・内航営業課　新興倉庫営業所","原価",null,"NS04","倉庫（含む物流センター）","生産原価部門","※","2016-04名称変更"]
[41,"0424","総合営業第三部　倉庫・内航営業課　芝浦営業所","原価",null,"NS06","関連事業","生産原価部門","※","2016-04名称変更"]
[41,"0419","総合営業第三部　営業第四課","管理",null,"NS01","国際海上貨物","販売管理部門"]
[41,"0421","総合営業第三部　川崎営業課","管理",null,"NS03","国内輸送","販売管理部門"]
[41,"0233","総合営業第三部　川崎営業課　東扇島物流センター","原価",null,"NS03","国内輸送","生産原価部門"]
[41,"0416","総合営業第三部　川崎営業課　JPE･SUN営業所","原価",null,"NS03","国内輸送","生産原価部門"]
[41,"0415","総合営業第三部　根岸事業所","原価",null,"NS03","国内輸送","生産原価部門"]
[null,26,"陸運部"]
[26,"0260","陸運部　本部","原価",null,"NS03","国内輸送","生産原価部門"]
[26,"0253","陸運部　運輸課","原価",null,"NS03","国内輸送","生産原価部門"]
[26,"0254","陸運部　運輸課　出田町営業所","原価",null,"NS03","国内輸送","生産原価部門"]
[26,"0227","陸運部　運輸課　横浜羽沢営業所","原価",null,"NS03","国内輸送","生産原価部門"]
[null,47,"千葉支店"]
[47,"0470","千葉支店　本部","原価",null,"NS01","国際海上貨物","生産原価部門"]
[47,"0472","千葉支店　営業第一課","原価",null,"NS04","倉庫（含む物流センター）","生産原価部門"]
[47,"0475","千葉支店　営業第一課千葉倉庫営業所","原価",null,"NS04","倉庫（含む物流センター）","生産原価部門"]
[47,"0473","千葉支店　営業第一課旧支店跡地","原価",null,"NS03","国内輸送","生産原価部門"]
[47,"0478","千葉支店　営業第一課配車センター","原価",null,"NS07","不動産事業","生産原価部門"]
[47,"0477","千葉支店　営業第二課","原価",null,"NS01","国際海上貨物","生産原価部門"]
[null,32,"港運部"]
[32,"0320","港運部　本部","原価",null,"NS01","国際海上貨物","生産原価部門"]
[32,"0321","港運部　港運課　本牧A-7タｰミナル営業所","原価",null,"NS01","国際海上貨物","生産原価部門"]
[32,"0322","港運部　港運課　在来船係","原価",null,"NS01","国際海上貨物","生産原価部門"]
[32,"0325","港運部　港運課　南本牧タｰミナル営業所","原価",null,"NS01","国際海上貨物","生産原価部門"]
[32,"0327","港運部　港運課　シッピング係","原価",null,"NS01","国際海上貨物","生産原価部門"]
[32,"0328","港運部　港運課　大黒マルチターミナル営業所","原価",null,"NS01","国際海上貨物","生産原価部門"]
[32,"0324","港運部　港運課　営業係","原価",null,"NS01","国際海上貨物","生産原価部門"]
[32,"0329","港運部　代理店課","原価",null,"NS01","国際海上貨物","生産原価部門"]
[32,"0323","港運部　代理店課　代理店チーム","原価",null,"NS06","関連事業","生産原価部門"]
[32,"0300","海運・港運事業室","管理",null,"NS01","国際海上貨物","一般管理費部門","※","2016-04海運・港運事業室より編入"]
[null,46,"船舶代理店室"]
[46,"0460","船舶代理店室　本部","管理",null,"NS06","関連事業","販売管理部門"]
[46,"0464","船舶代理店室　代理店課","管理",null,"NS06","関連事業","販売管理部門"]
[46,"0468","船舶代理店室　中国船集貨課","管理",null,"NS06","関連事業","販売管理部門"]
[46,"0469","船舶代理店室　大阪代理店課","管理",null,"NS06","関連事業","販売管理部門"]
[null,33,"京浜支店"]
[33,"0330","京浜支店　本部","原価",null,"NS04","倉庫（含む物流センター）","生産原価部門"]
[33,"0340","京浜支店　営業本部","原価",null,"NS04","倉庫（含む物流センター）","生産原価部門"]
[null,"0343","京浜支店　営業本部　穀物","原価",null,"NS04","倉庫（含む物流センター）","生産原価部門"]
[33,"0331","京浜支店　業務課","原価",null,"NS04","倉庫（含む物流センター）","生産原価部門"]
[33,"0383","京浜支店　業務課　沿岸作業所","原価",null,"NS01","国際海上貨物","生産原価部門"]
[33,"0333","京浜支店　業務課　万国橋営業所","原価",null,"NS07","不動産事業","生産原価部門"]
[33,"0336","京浜支店　業務課　山下南営業所","原価",null,"NS04","倉庫（含む物流センター）","生産原価部門"]
[33,"0341","京浜支店　第一課　本牧営業所　西倉庫","原価",null,"NS04","倉庫（含む物流センター）","生産原価部門"]
[33,"0342","京浜支店　第一課　本牧営業所　東倉庫","原価",null,"NS04","倉庫（含む物流センター）","生産原価部門"]
[33,"0334","京浜支店　第一課　北倉庫営業所","原価",null,"NS04","倉庫（含む物流センター）","生産原価部門"]
[33,"0358","京浜支店　第一課　山下北第二倉庫","原価",null,"NS04","倉庫（含む物流センター）","生産原価部門"]
[33,"0359","京浜支店　第一課　Ｃ突営業所","原価",null,"NS01","国際海上貨物","生産原価部門"]
[33,"0384","京浜支店　第二課　南本牧営業所","原価",null,"NS01","国際海上貨物","生産原価部門"]
[33,"0376","京浜支店　第二課　大黒Ｌ２","原価",null,"NS03","国内輸送","生産原価部門"]
[33,"0378","京浜支店　第二課　大黒Ｌ５","原価",null,"NS01","国際海上貨物","生産原価部門"]
[33,"0379","京浜支店　第二課　大黒車両ターミナルセンター","原価",null,"NS01","国際海上貨物","生産原価部門"]
[33,"0332","京浜支店　第三課　神奈川倉庫","原価",null,"NS04","倉庫（含む物流センター）","生産原価部門"]
[33,"0335","京浜支店　第三課　神奈川埠頭営業所","原価",null,"NS04","倉庫（含む物流センター）","生産原価部門"]
[33,"0339","京浜支店　第三課　神奈川サイロ","原価",null,"NS04","倉庫（含む物流センター）","生産原価部門"]
[33,"0377","京浜支店　第三課　大黒埠頭倉庫営業所","原価",null,"NS04","倉庫（含む物流センター）","生産原価部門"]
[33,"0374","京浜支店　第四課　川崎営業所","原価",null,"NS01","国際海上貨物","生産原価部門"]
[33,"0354","京浜支店　第四課　東扇島営業所","原価",null,"NS01","国際海上貨物","生産原価部門"]
[33,"0392","京浜支店　第五課　大井倉庫営業所","原価",null,"NS04","倉庫（含む物流センター）","生産原価部門"]
[33,"0394","京浜支店　第五課　青海倉庫営業所","原価",null,"NS04","倉庫（含む物流センター）","生産原価部門"]
[33,"0393","京浜支店　第五課　平和島営業所","原価",null,"NS04","倉庫（含む物流センター）","生産原価部門"]
[33,"0395","京浜支店　第五課　青海流通営業所","原価",null,"NS04","倉庫（含む物流センター）","生産原価部門"]
[33,"0398","京浜支店　第六課　東京冷蔵倉庫営業所　　","原価",null,"NS04","倉庫（含む物流センター）","生産原価部門"]
[null,49,"通関部"]
[49,"0490","通関部　本部","原価",null,"NS01","国際海上貨物","生産原価部門"]
[49,"0484","通関部　管理課","原価",null,"NS01","国際海上貨物","生産原価部門"]
[49,"0480","通関部　横浜本部","原価",null,"NS01","国際海上貨物","生産原価部門"]
[49,"0482","通関部　横浜通関課　輸出通関","原価",null,"NS01","国際海上貨物","生産原価部門"]
[49,"0481","通関部　横浜通関課　輸入通関","原価",null,"NS01","国際海上貨物","生産原価部門"]
[49,"0489","通関部　横浜通関課　ＹＡＴ通関","原価",null,"NS01","国際海上貨物","生産原価部門"]
[49,"0496","通関部　横浜通関課　千葉輸出通関","原価",null,"NS01","国際海上貨物","生産原価部門"]
[49,"0497","通関部　横浜通関課　千葉輸入通関","原価",null,"NS01","国際海上貨物","生産原価部門"]
[49,"0499","通関部　横浜通関課　千葉輸入受渡","原価",null,"NS01","国際海上貨物","生産原価部門"]
[49,"0483","通関部　横浜受渡課　輸入受渡","原価",null,"NS01","国際海上貨物","生産原価部門"]
[49,"0487","通関部　輸出ドキュメントセンター","原価",null,"NS01","国際海上貨物","生産原価部門"]
[49,"0486","通関部　輸出ドキュメントセンター(東京）","原価",null,"NS01","国際海上貨物","生産原価部門"]
[49,"0485","通関部　横浜DO/BLチーム","原価",null,"NS01","国際海上貨物","生産原価部門"]
[49,"0491","通関部　東京本部","原価",null,"NS01","国際海上貨物","生産原価部門"]
[49,"0493","通関部　東京通関課　輸出通関","原価",null,"NS01","国際海上貨物","生産原価部門"]
[49,"0494","通関部　東京通関課　輸入通関","原価",null,"NS01","国際海上貨物","生産原価部門"]
[49,"0495","通関部　東京輸入受渡課","原価",null,"NS01","国際海上貨物","生産原価部門"]
[49,"0850","通関部　大阪本部","原価",null,"NS01","国際海上貨物","生産原価部門"]
[49,"0855","通関部　大阪輸出課　通関","原価",null,"NS01","国際海上貨物","生産原価部門"]
[49,"0856","通関部　大阪輸出課　受渡","原価",null,"NS01","国際海上貨物","生産原価部門"]
[49,"0857","通関部　大阪輸入課　通関","原価",null,"NS01","国際海上貨物","生産原価部門"]
[49,"0858","通関部　大阪輸入課　受渡","原価",null,"NS01","国際海上貨物","生産原価部門"]
[49,"0860","通関部　神戸本部","原価",null,"NS01","国際海上貨物","生産原価部門"]
[49,"0862","通関部　神戸輸出課　通関","原価",null,"NS01","国際海上貨物","生産原価部門"]
[49,"0863","通関部　関西輸出ドキュメントセンター","原価",null,"NS01","国際海上貨物","生産原価部門"]
[49,"0864","通関部　神戸輸入課　通関","原価",null,"NS01","国際海上貨物","生産原価部門"]
[49,"0865","通関部　神戸輸入課　受渡","原価",null,"NS01","国際海上貨物","生産原価部門"]
[49,"0900","通関部　業務センター本部","原価",null,"NS01","国際海上貨物","生産原価部門","※","2016-04名称変更"]
[49,"0901","通関部　ドキュメント業務課","原価",null,"NS01","国際海上貨物","生産原価部門","※","2016-04名称変更"]
[49,"0905","通関部　カスタマーサービス課","原価",null,"NS01","国際海上貨物","生産原価部門","※","2016-04名称変更"]
[49,"0906","通関部　ＮＥＯＳ業務課","原価",null,"NS01","国際海上貨物","生産原価部門","※","2016-04名称変更"]
[null,27,"国際営業第一部"]
[27,"0270","国際営業第一部　本部","管理",null,"NS01","国際海上貨物","販売管理部門"]
[27,"0281","国際営業第一部　南本牧物流センター","原価",null,"NS01","国際海上貨物","生産原価部門"]
[27,"0291","国際営業第一部　複合業務課","原価",null,"NS01","国際海上貨物","生産原価部門"]
[27,"0292","国際営業第一部　複合業務課　沖縄事務所","原価",null,"NS01","国際海上貨物","生産原価部門"]
[27,"0296","国際営業第一部　複合輸送一課輸出","管理",null,"NS01","国際海上貨物","販売管理部門"]
[27,"0272","国際営業第一部　複合輸送二課 ＧＡＰ","管理",null,"NS01","国際海上貨物","販売管理部門"]
[27,"0273","国際営業第一部　複合輸送二課 ジョイフル本田","管理",null,"NS01","国際海上貨物","販売管理部門"]
[27,"0274","国際営業第一部　複合輸送二課 海貨","管理",null,"NS01","国際海上貨物","販売管理部門"]
[27,"0275","国際営業第一部　タンクコンテナチーム","管理",null,"NS01","国際海上貨物","販売管理部門","※","2016-04新設"]
[27,"0294","国際営業第一部　複合輸送二課 ＮＶＯ","管理",null,"NS01","国際海上貨物","販売管理部門"]
[27,"0299","国際営業第一部　複合輸送二課 ＮＶＯ入金システム","管理",null,"NS01","国際海上貨物","販売管理部門"]
[27,"0271","国際営業第一部　複合輸送二課 ＯＬＣ","管理",null,"NS01","国際海上貨物","販売管理部門"]
[27,"0740","国際営業第一部　ロシア・ＣＩＳ室　本部","管理",null,"NS01","国際海上貨物","販売管理部門"]
[27,"0297","国際営業第一部　ロシア・ＣＩＳ室　営業","管理",null,"NS01","国際海上貨物","販売管理部門"]
[27,"0280","国際営業第一部　本牧事業所","原価",null,"NS01","国際海上貨物","生産原価部門"]
[27,"0282","国際営業第一部　本牧事業所作業課","原価",null,"NS01","国際海上貨物","生産原価部門"]
[27,"0289","国際営業第一部　本牧事業所作業課リペア","原価",null,"NS01","国際海上貨物","生産原価部門"]
[27,"0283","国際営業第一部　本牧事業所輸送課","原価",null,"NS03","国内輸送","生産原価部門"]
[27,"0285","国際営業第一部　大井事業所","原価",null,"NS01","国際海上貨物","生産原価部門"]
[27,"0450","国際営業第一部　プラント本部","管理",null,"NS01","国際海上貨物","販売管理部門"]
[27,"0451","国際営業第一部　プラント一課","管理",null,"NS01","国際海上貨物","販売管理部門"]
[27,"0457","国際営業第一部　プラント二課","管理",null,"NS01","国際海上貨物","販売管理部門"]
[27,"0458","国際営業第一部　プラント二課機工チーム","管理",null,"NS06","関連事業","販売管理部門"]
[null,43,"国際営業第二部"]
[43,"0430","国際営業第二部　本部","管理",null,"NS01","国際海上貨物","販売管理部門"]
[43,"0431","国際営業第二部　営業第四課　離島関連","管理",null,"NS01","国際海上貨物","販売管理部門","※","2016-04名称変更"]
[43,"0432","国際営業第二部　営業第四課　防衛省関連","管理",null,"NS01","国際海上貨物","販売管理部門","※","2016-04名称変更"]
[43,"0442","国際営業第二部　営業第一課　","管理",null,"NS01","国際海上貨物","販売管理部門","※","2016-04名称変更"]
[43,"0434","国際営業第二部　営業第一課　青海営業所","管理",null,"NS04","倉庫（含む物流センター）","販売管理部門","※","2016-04名称変更"]
[43,"0433","国際営業第二部　営業第一課　大牟田営業所","管理",null,"NS01","国際海上貨物","販売管理部門","※","2016-04名称変更"]
[43,"0435","国際営業第二部　営業第一課　伊勢崎・太田営業所","管理",null,"NS01","国際海上貨物","販売管理部門","※","2016-04名称変更"]
[43,"0443","国際営業第二部　営業第二課","管理",null,"NS01","国際海上貨物","販売管理部門","※","2016-04名称変更"]
[43,"0448","国際営業第二部　デュポン関連","管理",null,"NS01","国際海上貨物","販売管理部門","※","2016-04名称変更"]
[43,"0795","国際営業第二部　芳賀通関営業所","原価",null,"NS04","倉庫（含む物流センター）","生産原価部門","※","2016-04名称変更"]
[43,"0796","国際営業第二部　第二課　芳賀通関営業所","原価",null,"NS01","国際海上貨物","生産原価部門","※","2016-04名称変更"]
[43,"0447","国際営業第二部　営業第三課","管理",null,"NS01","国際海上貨物","販売管理部門","※","2016-04名称変更"]
[43,"0446","国際営業第二部　営業第三課　平和島営業所","管理",null,"NS01","国際海上貨物","販売管理部門","※","2016-04名称変更"]
[43,"0441","国際営業第二部　営業第四課","管理",null,"NS01","国際海上貨物","販売管理部門","※","2016-04名称変更"]
[null,31,"国際営業第三部"]
[31,"0310","国際営業第三部　本部","管理",null,"NS01","国際海上貨物","販売管理部門"]
[31,"0311","国際営業第三部　営業第一課","管理",null,"NS01","国際海上貨物","販売管理部門"]
[31,"0315","国際営業第三部　営業第二課","管理",null,"NS01","国際海上貨物","販売管理部門"]
[31,"0313","国際営業第三部　営業第三課","管理",null,"NS01","国際海上貨物","販売管理部門"]
[31,"0312","国際営業第三部　営業第四課","管理",null,"NS01","国際海上貨物","販売管理部門"]
[31,"0316","国際営業第三部　営業第四課（チーズ）","管理",null,"NS01","国際海上貨物","販売管理部門"]
[null,73,"引越部"]
[73,"0730","引越部　本部　　　　","管理",null,"NS05","引越","販売管理部門"]
[73,"0732","引越部　第一課","管理",null,"NS05","引越","販売管理部門","※","2016-04名称変更"]
[73,"0736","引越部　第一課　残置貨物","管理",null,"NS05","引越","販売管理部門","※","2016-04名称変更"]
[73,"0733","引越部　第二課","管理",null,"NS05","引越","販売管理部門","※","2016-04名称変更"]
[73,"0734","引越部　第一課　輸入","管理",null,"NS05","引越","販売管理部門","※","2016-04名称変更"]
[73,"0735","引越部　第三課　輸出","管理",null,"NS05","引越","販売管理部門","※","2016-04名称変更"]
[73,"0578","引越部　第四課","管理",null,"NS05","引越","販売管理部門","※","2016-04大阪航空部より編入、名称変更"]
[null,60,"総合営業第一部"]
[60,"0600","総合営業第一部　本部","管理",null,"NS01","国際海上貨物","販売管理部門"]
[60,"0610","総合営業第一部　企画課","管理",null,"NS01","国際海上貨物","販売管理部門","※","2016-04名称変更"]
[60,"0612","総合営業第一部　第一課　第二係","管理",null,"NS01","国際海上貨物","販売管理部門"]
[60,"0611","総合営業第一部　第一課　第三係","管理",null,"NS02","国際航空事業","販売管理部門"]
[60,"0627","総合営業第一部　第一課　第五係　","管理",null,"NS01","国際航空事業","販売管理部門"]
[60,"0633","総合営業第一部　第一課　宅配係","管理",null,"NS02","国際航空事業","販売管理部門"]
[60,"0623","総合営業第一部　第二課","管理",null,"NS01","国際海上貨物","販売管理部門"]
[60,"0630","総合営業第一部　企画課 (ＮＡＣ)","管理",null,"NS02","国際航空事業","販売管理部門","※","2016-04名称変更"]
[60,"0613","総合営業第一部　第三課　埼玉ふじみ野（営）部品","原価",null,"NS02","国際航空事業","生産原価部門"]
[60,"0614","総合営業第一部　第三課　埼玉ふじみ野（営）一般","原価",null,"NS02","国際航空事業","生産原価部門"]
[60,"0646","総合営業第一部　第三課　朝霞(営)","原価",null,"NS02","国際航空事業","生産原価部門"]
[60,"0616","総合営業第一部　第三課　朝霞(営)和研","原価",null,"NS02","国際航空事業","生産原価部門"]
[60,"0615","総合営業第一部　第四課　さくら（営）","原価",null,"NS01","国際海上貨物","生産原価部門"]
[60,"0618","総合営業第一部　第四課　芳賀（営）研究所","原価",null,"NS02","国際航空事業","生産原価部門"]
[60,"0670","総合営業第一部　第四課　芳賀（営）一般","原価",null,"NS02","国際航空事業","生産原価部門"]
[60,"0625","総合営業第一部　第五課　太田営業所","原価",null,"NS02","国際航空事業","生産原価部門"]
[60,"0624","総合営業第一部　第六課　浜松(営)","原価",null,"NS01","国際海上貨物","生産原価部門"]
[60,"0626","総合営業第一部　第三課　セントレア(営)","原価",null,"NS01","国際海上貨物","生産原価部門","※","2016-04名称変更"]
[60,"0628","総合営業第一部　第六課　厚木(営)","原価",null,"NS01","国際海上貨物","生産原価部門"]
[60,"0617","総合営業第一部　第七課　第一係","原価",null,"NS01","国際海上貨物","生産原価部門"]
[60,"0637","総合営業第一部　第七課　習志野営業所","原価",null,"NS01","国際海上貨物","生産原価部門"]
[60,"0638","総合営業第一部　第七課　大黒営業所","原価",null,"NS01","国際海上貨物","生産原価部門"]
[60,"0639","総合営業第一部　第七課　大黒営業所内航船","原価",null,"NS03","国内輸送","生産原価部門"]
[60,"0619","総合営業第一部　第二課（HT）","管理",null,"NS01","国際海上貨物","販売管理部門","※","2016-04名称変更"]
[60,"0621","総合営業第一部　企画課（HL)","原価",null,"NS02","国際航空事業","生産原価部門","※","2016-04名称変更"]
[60,"0622","総合営業第一部　企画課　角田(営）","原価",null,"NS01","国際海上貨物","生産原価部門","※","2016-04名称変更"]
[null,80,"航空事業部"]
[80,"0205","航空事業部","管理",null,"NS02","国際航空事業","一般管理費部門"]
[80,"0800","航空事業部　営業企画開発課","管理",null,"NS02","国際航空事業","販売管理部門"]
[80,"0803","航空事業部　成田業務課","管理",null,"NS02","国際航空事業","販売管理部門"]
[80,"0691","航空事業部　航空貨物業務センター（管理）","管理",null,"NS02","国際航空事業","販売管理部門"]
[80,"0607","航空事業部　海外業務課","管理",null,"NS02","国際航空事業","販売管理部門"]
[80,"0671","航空事業部　ＮＡＣ管理コード","管理",null,"NS02","国際航空事業","販売管理部門"]
[80,"0698","航空事業部　成田ロジスティックスセンター","原価",null,"NS02","国際航空事業","生産原価部門"]
[80,"0699","航空事業部　航空貨物業務センター（輸出）東京","原価",null,"NS02","国際航空事業","生産原価部門"]
[80,"0661","航空事業部　セントレア営業所","管理",null,"NS02","国際航空事業","販売管理部門"]
[80,"0663","航空事業部　愛知日新","管理",null,"NS02","国際航空事業","販売管理部門"]
[80,"0645","航空事業部　代理店(三陸)","管理",null,"NS02","国際航空事業","販売管理部門"]
[80,"0605","航空事業部　混載(航空管理)","管理",null,"NS02","国際航空事業","販売管理部門"]
[80,"0608","航空事業部　混載","管理",null,"NS02","国際航空事業","販売管理部門"]
[null,69,"東京航空第一部"]
[69,"0690","東京航空第一部　本部","管理",null,"NS02","国際航空事業","販売管理部門"]
[69,"0802","東京航空第一部　新千歳空港営業所","管理",null,"NS02","国際航空事業","販売管理部門"]
[69,"0640","東京航空第一部　第一課","管理",null,"NS02","国際航空事業","販売管理部門"]
[69,"0642","東京航空第一部　第一課　輸出","管理",null,"NS02","国際航空事業","販売管理部門"]
[69,"0649","東京航空第一部　第一課　輸入","管理",null,"NS02","国際航空事業","販売管理部門"]
[69,"0644","東京航空第一部　第二課","管理",null,"NS02","国際航空事業","販売管理部門"]
[69,"0641","東京航空第一部　第二課　東東京輸入","管理",null,"NS02","国際航空事業","販売管理部門"]
[69,"0643","東京航空第一部　第三課","管理",null,"NS02","国際航空事業","販売管理部門"]
[69,"0648","東京航空第一部　第三課　西東京輸入","管理",null,"NS02","国際航空事業","販売管理部門"]
[69,"0654","東京航空第一部　第四課","管理",null,"NS01","国際海上貨物","販売管理部門"]
[null,68,"東京航空第二部"]
[68,"0680","東京航空第二部　本部","管理",null,"NS02","国際航空事業","販売管理部門"]
[68,"0650","東京航空第二部　第一課","管理",null,"NS02","国際航空事業","販売管理部門"]
[68,"0652","東京航空第二部　第一課　航空輸出入(一般)","管理",null,"NS02","国際航空事業","販売管理部門"]
[68,"0658","東京航空第二部　第一課　輸入(食品)","管理",null,"NS02","国際航空事業","販売管理部門"]
[68,"0655","東京航空第二部　第一課　海上（一般）","管理",null,"NS02","国際航空事業","販売管理部門"]
[68,"0647","東京航空第二部　第二課　第一係","管理",null,"NS02","国際航空事業","販売管理部門"]
[68,"0659","東京航空第二部　第二課　第二係","管理",null,"NS02","国際航空事業","販売管理部門"]
[68,"0609","東京航空第二部　第三課","管理",null,"NS01","国際海上貨物","販売管理部門"]
[68,"0653","東京航空第二部　第四課　成田営業所","管理",null,"NS02","国際航空事業","販売管理部門","※","2016-04名称変更"]
[68,"0635","東京航空第二部　第四課　成田営業所　宅配(輸入)","管理",null,"NS02","国際航空事業","販売管理部門","※","2016-04名称変更"]
[68,"0651","東京航空第二部　第四課　成田営業所　国内代理店","管理",null,"NS02","国際航空事業","販売管理部門","※","2016-04名称変更"]
[68,"0656","東京航空第二部　第四課　成田営業所　輸入混載","管理",null,"NS02","国際航空事業","販売管理部門","※","2016-04名称変更"]
[68,"0657","東京航空第二部　第四課　成田営業所　海外代理店","管理",null,"NS02","国際航空事業","販売管理部門","※","2016-04名称変更"]
[68,"0692","東京航空第二部　第四課　成田航空業務センター","原価",null,"NS02","国際航空事業","生産原価部門","※","2016-04名称変更"]
[68,"0660","東京航空第二部　羽田事務所","原価",null,"NS02","国際航空事業","生産原価部門"]
[68,"0693","東京航空第二部　航空業務センター輸出（横浜）","原価",null,"NS02","国際航空事業","生産原価部門"]
[null,59,"大阪航空部"]
[59,"0590","大阪航空部　本部","管理",null,"NS02","国際航空事業","販売管理部門"]
[59,"0870","大阪航空部　航空貨物業務センター","原価",null,"NS02","国際航空事業","生産原価部門"]
[59,"0845","大阪航空部　営業第六課","管理",null,"NS02","国際航空事業","販売管理部門","※","2016-04名称変更"]
[59,"0593","大阪航空部　営業第一課","管理",null,"NS02","国際航空事業","販売管理部門"]
[59,"0848","大阪航空部　営業第一課　広島営業所","管理",null,"NS02","国際航空事業","販売管理部門"]
[59,"0599","大阪航空部　営業第二課","管理",null,"NS02","国際航空事業","販売管理部門"]
[59,"0594","大阪航空部　営業第二課　神戸営業所","管理",null,"NS02","国際航空事業","販売管理部門"]
[59,"0591","大阪航空部　営業第三課　京都営業所","原価",null,"NS02","国際航空事業","生産原価部門"]
[59,"0597","大阪航空部　営業第三課　金沢営業所","原価",null,"NS02","国際航空事業","生産原価部門"]
[59,"0846","大阪航空部　営業第三課　福井営業所","原価",null,"NS02","国際航空事業","生産原価部門"]
[59,"0592","大阪航空部　営業第四課","原価",null,"NS02","国際航空事業","生産原価部門"]
[59,"0595","大阪航空部　営業第四課　関西空港営業所","原価",null,"NS02","国際航空事業","生産原価部門"]
[59,"0598","大阪航空部　南港航空貨物センター","原価",null,"NS02","国際航空事業","生産原価部門"]
[59,"0596","大阪航空部　南港航空貨物センター混載","管理",null,"NS02","国際航空事業","販売管理部門"]
[59,"0849","大阪航空部　南港航空貨物センターメイク","管理",null,"NS02","国際航空事業","販売管理部門"]
[59,"0665","大阪航空部　福岡混載(九州日新)","管理",null,"NS02","国際航空事業","販売管理部門"]
[59,"0662","大阪航空部　福岡営業所（輸出）","管理",null,"NS02","国際航空事業","販売管理部門"]
[59,"0672","大阪航空部　福岡営業所（輸入）","管理",null,"NS02","国際航空事業","販売管理部門"]
[null,57,"大阪営業第一部"]
[57,"0570","大阪営業第一部　本部","管理",null,"NS01","国際海上貨物","販売管理部門"]
[57,"0561","大阪営業第一部　営業第一課(0561)","管理",null,"NS01","国際海上貨物","販売管理部門"]
[57,"0562","大阪営業第一部　営業第一課(0562)","管理",null,"NS01","国際海上貨物","販売管理部門"]
[57,"0563","大阪営業第一部　営業第一課　摩耶営業所","原価",null,"NS03","国内輸送","生産原価部門"]
[57,"0572","大阪営業第一部　営業第二課","管理",null,"NS01","国際海上貨物","販売管理部門"]
[57,"0577","大阪営業第一部　営業第三課","管理",null,"NS01","国際海上貨物","販売管理部門"]
[57,"0871","大阪営業第一部　営業開発課","管理",null,"NS01","国際海上貨物","販売管理部門","※","2016-04新設"]
[57,"0872","大阪営業第一部　業務課","管理",null,"NS01","国際海上貨物","販売管理部門","※","2016-04新設"]
[null,56,"大阪営業第二部"]
[56,"0560","大阪営業第二部　本部","管理",null,"NS01","国際海上貨物","販売管理部門"]
[56,"0565","大阪営業第二部　営業第一課","管理",null,"NS01","国際海上貨物","販売管理部門"]
[56,"0566","大阪営業第二部　営業第二課","管理",null,"NS01","国際海上貨物","販売管理部門"]
[56,"0532","大阪営業第二部　営業第二課　新木場営業所","管理",null,"NS01","国際海上貨物","販売管理部門"]
[56,"0571","大阪営業第二部　営業第三課","管理",null,"NS01","国際海上貨物","販売管理部門"]
[56,"0574","大阪営業第二部　営業第三課　南港化学品センター","原価",null,"NS01","国際海上貨物","生産原価部門"]
[56,"0567","大阪営業第二部　国際課","管理",null,"NS01","国際海上貨物","販売管理部門"]
[56,"0569","大阪営業第二部　国際課　輸入業務","管理",null,"NS01","国際海上貨物","販売管理部門"]
[56,"0531","大阪営業第二部　国際課　海貨","管理",null,"NS01","国際海上貨物","販売管理部門"]
[56,"0534","大阪営業第二部　国際課　輸出業務","管理",null,"NS01","国際海上貨物","販売管理部門"]
[null,58,"大阪支店"]
[58,"0580","大阪支店　本部","管理",null,"NS01","国際海上貨物","販売管理部門"]
[58,"0589","大阪支店　南港倉庫課","原価",null,"NS04","倉庫（含む物流センター）","生産原価部門"]
[58,"0548","大阪支店　南港倉庫課　湖東営業所","原価",null,"NS04","倉庫（含む物流センター）","生産原価部門"]
[58,"0549","大阪支店　南港倉庫課　第二倉庫","原価",null,"NS04","倉庫（含む物流センター）","生産原価部門"]
[58,"0588","大阪支店　南港西倉庫課","原価",null,"NS06","関連事業","生産原価部門"]
[58,"0583","大阪支店　南港西倉庫課　Ｌ-２ターミナル","原価",null,"NS01","国際海上貨物","生産原価部門"]
[58,"0582","大阪支店　南港西倉庫課　堺物流センター","原価",null,"NS04","倉庫（含む物流センター）","生産原価部門"]
[58,"0586","大阪支店　代理店","原価",null,"NS06","関連事業","生産原価部門"]
[58,"0587","大阪支店　港運課","原価",null,"NS01","国際海上貨物","生産原価部門"]
[58,"0585","大阪支店　泉北倉庫課","原価",null,"NS01","国際海上貨物","生産原価部門"]
[58,"0545","大阪支店　泉北倉庫課　助松埠頭営業所","原価",null,"NS01","国際海上貨物","生産原価部門"]
[58,"0584","大阪支店　泉北倉庫課　南大阪・助松・泉佐野センター","原価",null,"NS04","倉庫（含む物流センター）","生産原価部門"]
[58,"0581","大阪支店　泉北倉庫課　福岡営業所","原価",null,"NS01","国際海上貨物","生産原価部門"]
[58,"0547","大阪支店　堺ＬＣ推進室","管理",null,"NS00","全社","販売管理部門"]
[58,"0544","大阪支店　堺ロジスティクスセンター","原価",null,"NS04","倉庫（含む物流センター）","生産原価部門"]
[58,"0535","大阪支店　堺ＬＣ推進室　堺ロジスティクスセンター　堺浜営業所","原価",null,"NS04","倉庫（含む物流センター）","生産原価部門"]
[null,52,"神戸支店"]
[52,"0520","神戸支店　本部","管理",null,"NS01","国際海上貨物","販売管理部門"]
[52,"0521","神戸支店　海運課","原価",null,"NS01","国際海上貨物","生産原価部門"]
[52,"0522","神戸支店　海運課代理店","原価",null,"NS06","関連事業","生産原価部門"]
[52,"0523","神戸支店　ターミナル課","原価",null,"NS01","国際海上貨物","生産原価部門"]
[52,"0524","神戸支店　ターミナル課ステベ","原価",null,"NS01","国際海上貨物","生産原価部門"]
[52,"0514","神戸支店　倉庫第一課","原価",null,"NS04","倉庫（含む物流センター）","生産原価部門"]
[52,"0516","神戸支店　倉庫第一課　冷蔵倉庫営業所","原価",null,"NS04","倉庫（含む物流センター）","生産原価部門"]
[52,"0517","神戸支店　倉庫第一課　摩耶東物流センター","原価",null,"NS06","関連事業","生産原価部門"]
[52,"0519","神戸支店　倉庫第一課　摩耶センター","原価",null,"NS07","不動産事業","生産原価部門"]
[52,"0515","神戸支店　倉庫第一課　摩耶西倉庫","原価",null,"NS06","関連事業","生産原価部門"]
[52,"0511","神戸支店　倉庫第二課","原価",null,"NS01","国際海上貨物","生産原価部門"]
[52,"0526","神戸支店　倉庫第二課　Ｋ-ＤＩＣ営業所","原価",null,"NS01","国際海上貨物","生産原価部門"]
[null,55,"総合営業第二部"]
[55,"0551","総合営業第二部　本部","管理",null,"NS02","国際航空事業","販売管理部門"]
[55,"0554","総合営業第二部　西田辺業務課","原価",null,"NS01","国際海上貨物","生産原価部門"]
[55,"0555","総合営業第二部　流通管理課","原価",null,"NS02","国際航空事業","生産原価部門"]
[55,"0557","総合営業第二部　流通管理課　西神営業所","原価",null,"NS06","関連事業","生産原価部門"]
[55,"0552","総合営業第二部　流通管理課　南大阪営業所","原価",null,"NS06","関連事業","生産原価部門"]
[55,"0785","総合営業第二部　流通管理課　堺営業所","原価",null,"NS06","関連事業","生産原価部門"]
[55,"0559","総合営業第二部　流通管理課　栃木営業所","原価",null,"NS02","国際航空事業","生産原価部門"]
[55,"0789","総合営業第二部　流通管理課　堺浜営業所","原価",null,"NS01","国際海上貨物","生産原価部門"]
[55,"0556","総合営業第二部　営業開発課","管理",null,"NS01","国際海上貨物","販売管理部門"]
[null,50,"関西管理室"]
[50,"0506","関西管理室　本部","管理",null,"NS00","全社","一般管理費部門"]
[50,"0208","関西支社","管理",null,"NS01","国際海上貨物","一般管理費部門"]
[50,"0501","関西管理室　総務課","管理",null,"NS00","全社","一般管理費部門"]
[50,"0164","関西管理室　総務課　関西安全環境管理センター","管理",null,"NS00","全社","一般管理費部門"]
[50,"0508","関西管理室　共通経費","管理",null,"NS00","全社","一般管理費部門"]
[50,"0509","関西管理室　社宅コード","管理",null,"NS00","全社","一般管理費部門"]
[50,"0503","関西管理室　管理会計課","管理",null,"NS00","全社","一般管理費部門"]